bitfinex-derivatives/quotes_BTCF0:USTF0_20230106
["timestamp","ask_amount","ask_price","bid_price","bid_amount"]
[1673020859068,0.1483,16852.0,16851.0,0.5007]
[1673020860113,0.1483,16852.0,16851.0,0.58885295]
[1673020860747,0.008,16852.0,16851.0,0.78697987]
[1673020864646,0.008,16852.0,16851.0,0.6548]
[1673020866432,0.008,16852.0,16851.0,0.78717398]
[1673020870951,0.008,16852.0,16851.0,0.78857398]
[1673020873053,0.008,16852.0,16851.0,0.6559]
[1673020875055,0.008,16852.0,16851.0,0.78827398]
[1673020880839,0.008,16852.0,16851.0,0.78857398]
[1673020881985,0.008,16852.0,16851.0,0.6562]
[1673020882724,0.008,16852.0,16851.0,0.65600229]
[1673020883350,0.008,16852.0,16851.0,0.78837627]
[1673020887662,0.008,16852.0,16851.0,0.65600229]
[1673020888096,0.008,16852.0,16851.0,1.25160229]
[1673020888310,0.43068432,16856.0,16851.0,1.57634212]
[1673020888626,0.40159632,16856.0,16855.0,0.38889979]
[1673020888830,0.1485,16856.0,16855.0,0.58889979]
[1673020889675,0.1495,16856.0,16855.0,0.59989979]
[1673020890931,0.001,16856.0,16855.0,0.74839979]
[1673020891356,0.1482,16856.0,16855.0,0.5117]
[1673020891875,0.1482,16856.0,16855.0,0.59989979]
[1673020893773,0.1482,16856.0,16855.0,0.29919979]
[1673020900810,0.1495,16856.0,16855.0,0.29919979]
[1673020901755,0.1495,16856.0,16855.0,0.29915656]
[1673020902484,0.001,16856.0,16855.0,0.3594]
[1673020903326,0.001,16856.0,16855.0,0.44752163]
[1673020903643,0.001,16856.0,16855.0,0.3594]
[1673020903860,0.101,16856.0,16855.0,0.44752073]
[1673020905748,0.001,16856.0,16855.0,0.44752073]
[1673020906272,0.001,16856.0,16855.0,0.44762073]
[1673020907322,0.001,16856.0,16855.0,0.3595]
[1673020907529,0.001,16856.0,16855.0,0.44762073]
[1673020907735,0.001,16856.0,16855.0,0.3595]
[1673020908061,0.2964,16856.0,16855.0,0.011]
[1673020914259,0.4443,16856.0,16855.0,0.011]
[1673020917299,0.2972,16856.0,16855.0,0.011]
[1673020920556,0.2972,16856.0,16855.0,0.09912073]
[1673020925185,0.1493,16856.0,16855.0,0.44399968]
[1673020927392,0.1493,16856.0,16855.0,0.3117]
[1673020927602,0.1493,16856.0,16855.0,0.44399968]
[1673020927814,0.1493,16856.0,16855.0,0.3117]
[1673020928026,0.1493,16856.0,16855.0,0.44399968]
[1673020930753,0.1495,16856.0,16855.0,0.44399968]
[1673020931168,0.1495,16856.0,16855.0,0.3117]
[1673020932122,0.2965,16856.0,16855.0,0.09922757]
[1673020939692,0.1495,16856.0,16855.0,0.09922757]
[1673020939899,0.1495,16856.0,16855.0,0.0990839]
[1673020941158,0.1495,16856.0,16855.0,0.01085633]
[1673020941677,0.1495,16856.0,16855.0,0.31155633]
[1673020942633,0.1495,16856.0,16855.0,0.44385601]
[1673020942843,0.1495,16856.0,16855.0,0.31155633]
[1673020943047,0.1495,16856.0,16855.0,0.44385601]
[1673020943361,0.001,16856.0,16855.0,0.59185601]
[1673020943580,0.1183889,16860.0,16855.0,1.87141131]
[1673020943891,0.1183889,16860.0,16858.0,0.53744212]
[1673020943892,0.1485,16860.0,16858.0,0.53744212]
[1673020944313,0.2,16859.0,16858.0,0.53744212]
[1673020944838,0.2,16859.0,16858.0,0.54944212]
[1673020945048,0.2,16859.0,16858.0,0.4612]
[1673020945258,0.2,16859.0,16858.0,0.4602]
[1673020945464,0.2,16859.0,16858.0,0.54844212]
[1673020946200,0.4492,16860.0,16858.0,0.54844212]
[1673020946403,0.2,16861.0,16858.0,0.39994212]
[1673020946729,0.11026312,16861.0,16860.0,0.3007]
[1673020947043,0.169842,16863.0,16860.0,0.53744212]
[1673020947248,0.12723458,16863.0,16860.0,0.4492]
[1673020947464,0.5059,16864.0,16862.0,0.3007]
[1673020947667,0.1709939,16864.0,16862.0,0.3007]
[1673020948097,0.1709939,16864.0,16860.0,0.1591]
[1673020948098,0.1414235,16864.0,16860.0,0.1591]
[1673020948309,0.3007,16863.0,16862.0,0.012]
[1673020948535,0.7485,16863.0,16862.0,0.012]
[1673020948945,0.897,16863.0,16862.0,0.012]
[1673020949572,1.197,16863.0,16859.0,0.147]
[1673020949891,0.1483,16860.0,16858.0,1.0963]
[1673020950092,0.1483,16860.0,16858.0,0.5007]
[1673020950304,0.3483,16860.0,16859.0,0.2]
[1673020950836,0.3485,16860.0,16859.0,0.2]
[1673020951155,0.1485,16860.0,16859.0,0.211]
[1673020951359,0.1485,16860.0,16859.0,0.2]
[1673020951574,0.1595,16860.0,16859.0,0.21]
[1673020952412,0.3073,16860.0,16859.0,0.01]
[1673020952620,0.4552,16860.0,16859.0,0.01]
[1673020952837,0.6552,16860.0,16859.0,0.0001]
[1673020954097,0.5073,16860.0,16859.0,0.0001]
[1673020956094,1.8451,16860.0,16854.0,0.38894212]
[1673020956301,0.1484,16856.0,16854.0,0.08824212]
[1673020956515,0.1485,16855.0,16854.0,0.08824212]
[1673020956724,0.1485,16855.0,16853.0,0.38894212]
[1673020956938,0.2968,16856.0,16854.0,0.2]
[1673020957142,0.1485,16855.0,16854.0,0.034]
[1673020957353,0.4448,16855.0,16852.0,0.08824212]
[1673020957564,0.1485,16853.0,16852.0,0.08824212]
[1673020958617,0.2045,16853.0,16852.0,0.09324212]
[1673020959146,0.2045,16853.0,16852.0,0.005]
[1673020959776,0.5008,16853.0,16852.0,0.005]
[1673020960825,0.7008,16853.0,16852.0,0.005]
[1673020961251,0.553,16853.0,16852.0,0.005]
[1673020968296,0.553,16853.0,16848.0,0.3007]
[1673020968297,0.1,16852.0,16848.0,0.3007]
[1673020968510,0.1485,16849.0,16848.0,0.3007]
[1673020969759,0.1485,16849.0,16848.0,0.3307]
[1673020970399,0.3625,16849.0,16848.0,0.3307]
[1673020971249,0.3625,16849.0,16848.0,0.03]
[1673020972710,0.3329,16849.0,16848.0,0.03]
[1673020974182,0.4506,16849.0,16848.0,0.03]
[1673020980283,0.3329,16849.0,16848.0,0.03]
[1673020980497,0.3189,16849.0,16847.0,0.3007]
[1673020980698,0.3339,16849.0,16848.0,0.227]
[1673020982913,0.3339,16849.0,16848.0,0.027]
[1673020983125,0.4528,16849.0,16848.0,0.027]
[1673020983860,0.4528,16849.0,16848.0,0.227]
[1673020986895,0.4528,16849.0,16848.0,0.027]
[1673020989317,0.5716,16849.0,16848.0,0.027]
[1673020989950,1.1061,16849.0,16848.0,0.027]
[1673020993749,0.5709,16849.0,16848.0,0.027]
[1673021003730,1.106,16849.0,16848.0,0.027]
[1673021006469,1.106,16849.0,16844.0,0.40764212]
[1673021006780,0.2378,16845.0,16844.0,0.3194]
[1673021006982,0.2378,16845.0,16843.0,0.08824212]
[1673021007189,0.2189,16844.0,16843.0,0.08838093]
[1673021007411,0.2189,16844.0,16843.0,0.28838093]
[1673021008556,0.2329,16844.0,16843.0,0.28838093]
[1673021012984,0.2329,16844.0,16843.0,0.2]
[1673021014348,0.2329,16844.0,16842.0,0.58908093]
[1673021014560,0.2329,16844.0,16841.0,0.28838093]
[1673021014561,0.2368,16843.0,16841.0,0.28838093]
[1673021014866,0.1188,16842.0,16841.0,0.28838093]
[1673021015708,0.1188,16842.0,16841.0,0.29138093]
[1673021016123,0.1188,16842.0,16841.0,0.203]
[1673021016764,0.1188,16842.0,16841.0,0.5037]
[1673021016974,0.1188,16842.0,16841.0,0.59203666]
[1673021017185,0.1188,16842.0,16841.0,0.58903666]
[1673021017498,0.1318,16842.0,16841.0,0.59203666]
[1673021017715,0.1328,16842.0,16841.0,0.59203666]
[1673021018752,0.1328,16842.0,16841.0,0.5037]
[1673021019169,0.1328,16842.0,16841.0,0.59203417]
[1673021020866,0.1328,16842.0,16841.0,0.39203417]
[1673021021077,0.1328,16842.0,16841.0,0.3037]
[1673021022542,0.1328,16842.0,16841.0,0.003]
[1673021022963,0.4517,16842.0,16841.0,0.003]
[1673021024949,0.4377,16842.0,16841.0,0.003]
[1673021025165,0.4517,16842.0,16841.0,0.003]
[1673021027164,0.7524,16842.0,16841.0,0.003]
[1673021032318,0.4517,16842.0,16841.0,0.003]
[1673021032522,0.3329,16842.0,16841.0,0.003]
[1673021032729,0.3329,16842.0,16841.0,0.203]
[1673021036827,0.3329,16842.0,16841.0,0.003]
[1673021037249,0.3329,16842.0,16841.0,0.203]
[1673021038937,0.3329,16842.0,16841.0,0.003]
[1673021040511,0.3329,16842.0,16841.0,0.203]
[1673021042507,0.3329,16842.0,16841.0,0.29133417]
[1673021042723,0.1329,16842.0,16841.0,0.29133417]
[1673021043668,0.1329,16842.0,16841.0,0.203]
[1673021043980,0.1329,16842.0,16841.0,0.29143054]
[1673021046395,0.1329,16842.0,16841.0,0.203]
[1673021047240,0.014,16842.0,16841.0,0.33536318]
[1673021047448,0.014,16842.0,16841.0,0.45426318]
[1673021047656,0.014,16842.0,16841.0,0.3219]
[1673021048086,0.014,16842.0,16841.0,0.6219]
[1673021049869,0.014,16842.0,16841.0,0.3219]
[1673021051444,0.014,16842.0,16841.0,0.45453717]
[1673021052807,0.014,16842.0,16841.0,0.33563717]
[1673021053019,0.014,16842.0,16841.0,0.203]
[1673021053231,0.1318,16842.0,16841.0,0.29144348]
[1673021054387,0.014,16842.0,16841.0,0.203]
[1673021054705,0.014,16842.0,16841.0,0.33563717]
[1673021055437,0.014,16842.0,16841.0,0.203]
[1673021055647,0.014,16842.0,16841.0,0.20279066]
[1673021055850,0.014,16842.0,16841.0,0.29123049]
[1673021056059,0.1329,16842.0,16841.0,0.29123049]
[1673021056271,0.1329,16842.0,16841.0,0.09123049]
[1673021056488,0.1329,16842.0,16841.0,0.29123049]
[1673021057959,0.1329,16842.0,16841.0,0.29043983]
[1673021058693,0.1329,16842.0,16841.0,4.06043983]
[1673021059110,0.1329,16842.0,16841.0,0.29043983]
[1673021061211,0.1329,16842.0,16841.0,0.202]
[1673021061425,0.1329,16842.0,16841.0,0.29043983]
[1673021062057,0.1329,16842.0,16841.0,0.202]
[1673021063522,0.1329,16842.0,16841.0,0.29043983]
[1673021064887,0.1329,16842.0,16841.0,0.202]
[1673021066255,0.1329,16842.0,16841.0,0.29046054]
[1673021066461,0.1329,16842.0,16841.0,0.29046782]
[1673021066672,0.1329,16842.0,16841.0,0.202]
[1673021067090,0.1329,16842.0,16841.0,0.29046875]
[1673021070461,0.1329,16842.0,16841.0,0.202]
[1673021070672,0.014,16842.0,16841.0,0.202]
[1673021071090,0.014,16842.0,16841.0,0.33463717]
[1673021071300,0.014,16842.0,16841.0,0.202]
[1673021071623,0.014,16842.0,16841.0,0.33463717]
[1673021072449,0.014,16842.0,16841.0,0.202]
[1673021073400,0.014,16842.0,16841.0,0.33478636]
[1673021073609,0.01383473,16842.0,16841.0,0.33478636]
[1673021076347,0.01383473,16842.0,16841.0,0.202]
[1673021076664,0.13183473,16842.0,16841.0,0.202]
[1673021077293,0.13183473,16842.0,16841.0,0.29055241]
[1673021078549,0.13183473,16842.0,16841.0,0.202]
[1673021079083,0.13183473,16842.0,16841.0,0.33478636]
[1673021081920,0.13183473,16842.0,16841.0,0.202]
[1673021083291,0.13183473,16842.0,16841.0,0.33481419]
[1673021084867,0.13183473,16842.0,16841.0,0.202]
[1673021085276,0.13183473,16842.0,16841.0,0.33481419]
[1673021085484,0.13183473,16842.0,16841.0,0.202]
[1673021085914,0.13183473,16842.0,16841.0,0.33481419]
[1673021086124,0.13183473,16842.0,16841.0,0.202]
[1673021087387,0.13183473,16842.0,16841.0,0.29055384]
[1673021087710,0.13183473,16842.0,16841.0,0.202]
[1673021088028,0.13183473,16842.0,16841.0,0.29055709]
[1673021088235,0.13183473,16842.0,16841.0,0.202]
[1673021090447,0.13183473,16842.0,16841.0,0.29056738]
[1673021094653,0.16223473,16842.0,16841.0,0.29056738]
[1673021094972,0.36223473,16842.0,16841.0,0.29056738]
[1673021095185,0.36223473,16842.0,16841.0,0.202]
[1673021095393,0.36223473,16842.0,16841.0,0.2905927]
[1673021095593,0.36223473,16842.0,16841.0,0.0905927]
[1673021096339,0.36223473,16842.0,16841.0,0.2905927]
[1673021097708,0.36223473,16842.0,16841.0,0.0905927]
[1673021098442,0.36223473,16842.0,16841.0,0.2905927]
[1673021099380,0.36223473,16842.0,16841.0,0.202]
[1673021100225,0.21383473,16842.0,16841.0,0.202]
[1673021100437,0.36243473,16842.0,16841.0,0.33481419]
[1673021100643,0.16243473,16842.0,16841.0,0.33481419]
[1673021101065,0.16223473,16842.0,16841.0,0.33481419]
[1673021101380,0.16223473,16842.0,16841.0,0.202]
[1673021101796,0.16223473,16842.0,16841.0,3.972]
[1673021102212,0.16223473,16842.0,16841.0,0.202]
[1673021102421,0.16223473,16842.0,16841.0,0.33483562]
[1673021104013,0.16243473,16842.0,16841.0,0.33483562]
[1673021105163,0.16203473,16842.0,16841.0,0.202]
[1673021106844,0.16203473,16842.0,16841.0,0.2905646]
[1673021107472,0.16203473,16842.0,16841.0,0.202]
[1673021108637,0.16203473,16842.0,16841.0,0.29057442]
[1673021108957,0.16203473,16842.0,16841.0,0.202]
[1673021109475,0.16203473,16842.0,16841.0,0.29057435]
[1673021109676,0.16203473,16842.0,16841.0,0.33483562]
[1673021115149,0.16203473,16842.0,16841.0,0.202]
[1673021115571,0.16203473,16842.0,16841.0,0.33485257]
[1673021119464,0.16203473,16842.0,16841.0,0.202]
[1673021119986,0.16203473,16842.0,16841.0,0.20186703]
[1673021121879,0.16203473,16842.0,16841.0,0.29044095]
[1673021122197,0.30953473,16842.0,16841.0,0.29044095]
[1673021122399,0.50953473,16842.0,16841.0,0.09044095]
[1673021123457,0.50953473,16842.0,16841.0,0.29044095]
[1673021124404,0.50953473,16842.0,16841.0,0.20186703]
[1673021125035,0.50953473,16842.0,16841.0,0.29044095]
[1673021125761,0.50953473,16842.0,16841.0,0.00186703]
[1673021126707,0.50953473,16842.0,16841.0,0.29044095]
[1673021127863,0.50953473,16842.0,16841.0,0.09044095]
[1673021128076,0.50953473,16842.0,16841.0,0.29044095]
[1673021128595,0.50953473,16842.0,16841.0,0.20186703]
[1673021128805,0.50953473,16842.0,16841.0,0.29044095]
[1673021130813,0.36133473,16842.0,16841.0,0.29044095]
[1673021131546,0.36133473,16842.0,16841.0,0.00186703]
[1673021135015,0.50993473,16842.0,16841.0,0.00186703]
[1673021138590,0.65853473,16842.0,16841.0,0.00186703]
[1673021140899,0.50993473,16842.0,16841.0,0.00186703]
[1673021157501,0.65853473,16842.0,16841.0,0.00186703]
[1673021159499,1.55013473,16842.0,16841.0,0.00186703]
[1673021159817,0.2,16841.0,16837.0,0.5256]
[1673021160022,0.296,16838.0,16837.0,0.5256]
[1673021160232,0.496,16838.0,16837.0,0.2]
[1673021160865,0.4962,16838.0,16837.0,0.2]
[1673021161075,0.4962,16838.0,16837.0,0.201]
[1673021161384,0.4962,16838.0,16837.0,0.2]
[1673021161594,0.5092,16838.0,16837.0,0.201]
[1673021166964,0.5092,16838.0,16837.0,0.001]
[1673021169176,0.6578,16838.0,16837.0,0.001]
[1673021172115,0.6578,16838.0,16837.0,0.201]
[1673021172331,0.5092,16838.0,16837.0,0.201]
[1673021173682,0.1606,16838.0,16837.0,0.5017]
[1673021175367,0.013,16838.0,16837.0,0.73882346]
[1673021175583,0.1486,16840.0,16837.0,0.87167603]
[1673021175785,0.2,16841.0,16839.0,0.4487]
[1673021175997,0.2,16841.0,16839.0,0.7494]
[1673021176524,0.3484,16842.0,16840.0,0.2]
[1673021176832,0.3484,16842.0,16841.0,0.3007]
[1673021177677,0.3475,16843.0,16841.0,0.4493]
[1673021177887,0.014,16842.0,16841.0,0.763]
[1673021178946,0.3475,16843.0,16841.0,0.75]
[1673021179257,0.014,16842.0,16841.0,0.4623]
[1673021179992,0.3475,16843.0,16841.0,0.4493]
[1673021180203,0.3615,16843.0,16841.0,0.4623]
[1673021180416,0.3626,16843.0,16842.0,0.2]
[1673021180623,0.3486,16843.0,16842.0,0.2]
[1673021182200,0.3626,16843.0,16842.0,0.2]
[1673021182622,0.3626,16843.0,16841.0,0.3137]
[1673021182948,0.3626,16843.0,16841.0,0.3007]
[1673021182949,0.1475,16842.0,16841.0,0.3007]
[1673021185246,0.1475,16842.0,16841.0,0.3137]
[1673021185455,0.1615,16842.0,16841.0,0.3137]
[1673021186709,0.1615,16842.0,16841.0,0.013]
[1673021186920,0.6096,16842.0,16841.0,0.013]
[1673021187563,0.8096,16842.0,16841.0,0.013]
[1673021210894,0.5089,16842.0,16841.0,0.013]
[1673021211425,0.5089,16842.0,16841.0,0.213]
[1673021211737,0.5089,16842.0,16841.0,0.013]
[1673021218992,0.5089,16842.0,16841.0,0.213]
[1673021219302,0.5089,16842.0,16841.0,0.013]
[1673021220347,0.5089,16842.0,16841.0,0.213]
[1673021220979,0.3089,16842.0,16841.0,0.213]
[1673021222041,0.1616,16842.0,16841.0,0.213]
[1673021223930,0.1623,16842.0,16841.0,0.30152346]
[1673021224142,0.1623,16842.0,16841.0,4.07152346]
[1673021224353,0.1623,16842.0,16841.0,4.11585257]
[1673021224565,0.1623,16842.0,16841.0,4.07146159]
[1673021228663,0.1623,16842.0,16841.0,0.30146159]
[1673021229607,0.1623,16842.0,16841.0,0.30130051]
[1673021230868,0.014,16842.0,16841.0,0.30130051]
[1673021234128,0.014,16842.0,16841.0,0.21283892]
[1673021238330,0.311,16842.0,16841.0,0.21283892]
[1673021238751,0.311,16842.0,16841.0,0.01283892]
[1673021238962,0.311,16842.0,16841.0,0.21283892]
[1673021238963,0.1626,16842.0,16841.0,0.21283892]
[1673021240329,0.3626,16842.0,16841.0,0.21283892]
[1673021240955,0.3626,16842.0,16841.0,0.01283892]
[1673021241593,0.1626,16842.0,16841.0,0.01283892]
[1673021241797,0.1626,16842.0,16841.0,0.21283892]
[1673021246744,0.133461,16842.0,16841.0,0.21283892]
[1673021247263,0.333461,16842.0,16841.0,0.01283892]
[1673021248727,0.2,16842.0,16841.0,0.01283892]
[1673021248944,0.2,16842.0,16841.0,0.21283892]
[1673021249261,0.3486,16842.0,16841.0,0.21283892]
[1673021249879,0.3486,16842.0,16841.0,0.01283892]
[1673021251886,0.3486,16842.0,16841.0,0.21283892]
[1673021252823,0.3486,16842.0,16841.0,0.01283892]
[1673021256401,0.3486,16842.0,16841.0,0.21283892]
[1673021257348,0.3486,16842.0,16841.0,0.01283892]
[1673021257979,0.3486,16842.0,16841.0,0.21283892]
[1673021258924,0.1486,16842.0,16841.0,0.21283892]
[1673021259343,0.1486,16842.0,16841.0,0.30130051]
[1673021260606,0.1486,16842.0,16841.0,0.21283892]
[1673021260816,0.1475,16842.0,16841.0,0.21283892]
[1673021261439,0.3475,16842.0,16841.0,0.01283892]
[1673021261653,0.3475,16842.0,16841.0,0.21283892]
[1673021262295,0.3475,16842.0,16841.0,0.01283892]
[1673021270709,0.495,16842.0,16841.0,0.01283892]
[1673021270916,0.3475,16842.0,16841.0,0.01283892]
[1673021277116,0.4961,16842.0,16841.0,0.01283892]
[1673021279635,0.4972,16842.0,16841.0,0.01283892]
[1673021290253,0.4972,16842.0,16840.0,0.3007]
[1673021290469,0.2961,16841.0,16840.0,0.3007]
[1673021290891,0.1475,16841.0,16840.0,0.3007]
[1673021291105,0.4444,16841.0,16838.0,0.5007]
[1673021291305,0.2,16840.0,16839.0,0.2]
[1673021291523,0.3475,16840.0,16839.0,0.2]
[1673021293215,0.3615,16840.0,16839.0,0.224]
[1673021294365,0.3615,16840.0,16839.0,0.22391893]
[1673021295416,0.3615,16840.0,16839.0,0.024]
[1673021295633,0.3615,16840.0,16839.0,0.224]
[1673021297102,0.3615,16840.0,16839.0,0.024]
[1673021297313,0.3615,16840.0,16839.0,0.224]
[1673021298046,0.3615,16840.0,16839.0,0.024]
[1673021298257,0.3615,16840.0,16839.0,0.224]
[1673021299301,0.3615,16840.0,16839.0,0.024]
[1673021300043,0.3615,16840.0,16839.0,0.224]
[1673021300253,0.3615,16840.0,16839.0,0.024]
[1673021300670,0.3615,16840.0,16839.0,0.224]
[1673021301729,0.3615,16840.0,16839.0,0.024]
[1673021320965,0.5101,16840.0,16839.0,0.024]
[1673021327591,0.5101,16840.0,16839.0,0.224]
[1673021328326,0.5101,16840.0,16839.0,0.024]
[1673021335566,1.253,16840.0,16839.0,0.024]
[1673021335777,1.2542,16840.0,16839.0,0.024]
[1673021335987,0.5101,16840.0,16839.0,0.024]
[1673021337037,1.4025,16840.0,16839.0,0.024]
[1673021337248,1.4001,16840.0,16839.0,0.024]
[1673021337462,1.4011,16840.0,16839.0,0.024]
[1673021337673,1.4001,16840.0,16839.0,0.024]
[1673021337887,1.4011,16840.0,16839.0,0.024]
[1673021338102,0.6583,16840.0,16839.0,0.024]
[1673021338834,1.4011,16840.0,16839.0,0.024]
[1673021339041,0.6583,16840.0,16839.0,0.024]
[1673021339246,1.4011,16840.0,16839.0,0.024]
[1673021339462,0.6583,16840.0,16839.0,0.024]
[1673021339678,0.2,16838.0,16835.0,0.2]
[1673021339881,0.2972,16836.0,16835.0,0.2]
[1673021340517,0.2972,16836.0,16834.0,0.2]
[1673021340723,0.1473,16835.0,16834.0,0.2]
[1673021341770,0.1603,16835.0,16834.0,0.203]
[1673021343674,0.1603,16835.0,16834.0,0.003]
[1673021344714,0.1603,16835.0,16834.0,0.203]
[1673021346924,0.1603,16835.0,16834.0,0.003]
[1673021347550,0.1603,16835.0,16834.0,0.203]
[1673021347765,0.1603,16835.0,16834.0,0.003]
[1673021348502,0.5089,16835.0,16834.0,0.003]
[1673021349871,0.5089,16835.0,16834.0,0.203]
[1673021350393,0.3603,16835.0,16834.0,0.203]
[1673021358686,0.3603,16835.0,16834.0,0.003]
[1673021359113,0.3603,16835.0,16834.0,0.203]
[1673021364584,0.3603,16835.0,16834.0,0.103]
[1673021376571,0.3603,16835.0,16834.0,0.19146159]
[1673021376782,0.3603,16835.0,16834.0,0.103]
[1673021378153,0.3603,16835.0,16833.0,0.72201416]
[1673021378469,0.1482,16834.0,16833.0,0.72201416]
[1673021379408,0.1612,16834.0,16833.0,0.72201416]
[1673021380149,0.1612,16834.0,16833.0,1.30146894]
[1673021380567,0.1612,16834.0,16833.0,1.3014692]
[1673021380891,0.013,16834.0,16833.0,1.16860463]
[1673021381726,0.013,16834.0,16833.0,1.38890442]
[1673021381939,0.013,16834.0,16833.0,1.21266459]
[1673021382140,0.013,16834.0,16833.0,1.38996589]
[1673021382462,0.013,16834.0,16833.0,1.21266459]
[1673021382673,0.013,16834.0,16833.0,1.38997524]
[1673021383300,0.013,16834.0,16833.0,1.16967545]
[1673021383719,0.013,16834.0,16833.0,1.38997524]
[1673021384358,0.013,16834.0,16833.0,1.16967545]
[1673021384566,0.013,16834.0,16833.0,1.38997524]
[1673021384775,0.013,16834.0,16833.0,1.16967545]
[1673021385401,0.013,16834.0,16833.0,1.95686459]
[1673021385719,0.1477,16836.0,16833.0,1.95686459]
[1673021385720,0.1477,16836.0,16834.0,0.21041044]
[1673021385930,0.1477,16836.0,16835.0,0.43361175]
[1673021387189,0.1477,16836.0,16835.0,0.52219426]
[1673021387610,0.1607,16836.0,16835.0,0.53419426]
[1673021388245,0.1607,16836.0,16835.0,0.44561175]
[1673021390245,0.12776,16836.0,16835.0,0.44561175]
[1673021390766,0.1605,16836.0,16835.0,0.44561175]
[1673021390982,0.013,16836.0,16835.0,0.59421175]
[1673021391180,0.013,16836.0,16835.0,0.88273729]
[1673021391815,0.013,16836.0,16835.0,0.79421175]
[1673021392029,0.1486,16838.0,16835.0,1.32940944]
[1673021392235,0.1486,16838.0,16837.0,0.3007]
[1673021392557,0.1486,16838.0,16837.0,0.38921886]
[1673021393390,0.1616,16838.0,16837.0,0.3367]
[1673021400860,0.1605,16838.0,16837.0,0.3367]
[1673021401286,0.1605,16838.0,16837.0,0.42521886]
[1673021401487,0.1605,16838.0,16837.0,0.3367]
[1673021410847,0.1616,16838.0,16837.0,0.3367]
[1673021414098,0.309,16838.0,16837.0,0.3367]
[1673021414307,0.1614,16838.0,16837.0,0.3367]
[1673021421568,0.1614,16838.0,16837.0,0.036]
[1673021430817,0.1616,16838.0,16837.0,0.036]
[1673021441014,0.1616,16838.0,16837.0,0.03589959]
[1673021443540,0.3102,16838.0,16837.0,0.03589959]
[1673021446062,0.6109,16838.0,16837.0,0.03589959]
[1673021447638,0.3102,16838.0,16837.0,0.03589959]
[1673021450786,0.1616,16838.0,16837.0,0.03589959]
[1673021456139,0.16143295,16838.0,16837.0,0.03589959]
[1673021461513,0.16143295,16838.0,16837.0,0.12441845]
[1673021461514,0.16123295,16838.0,16837.0,0.12441845]
[1673021463193,0.16123295,16838.0,16837.0,0.03589959]
[1673021464465,0.16123295,16838.0,16837.0,0.12441845]
[1673021465086,0.16123295,16838.0,16837.0,0.03589959]
[1673021466352,0.16123295,16838.0,16837.0,0.12441845]
[1673021467822,0.16123295,16838.0,16837.0,0.42511845]
[1673021468033,0.16123295,16838.0,16837.0,0.55789674]
[1673021468244,0.01283295,16838.0,16837.0,0.79519354]
[1673021468455,0.01283295,16838.0,16837.0,1.35396363]
[1673021468670,0.01283295,16838.0,16837.0,0.99508736]
[1673021469299,0.01283295,16838.0,16837.0,0.8178717]
[1673021469512,0.01283295,16838.0,16837.0,0.90631528]
[1673021470140,0.16143295,16838.0,16837.0,0.62504317]
[1673021470874,0.01283295,16838.0,16837.0,0.77364317]
[1673021471925,0.16033295,16838.0,16837.0,0.62504317]
[1673021472138,0.16033295,16838.0,16837.0,0.53659959]
[1673021473599,0.16033295,16838.0,16837.0,0.33659959]
[1673021473809,0.30793295,16838.0,16837.0,0.33659959]
[1673021476032,0.50793295,16838.0,16837.0,0.03589959]
[1673021480860,0.36033295,16838.0,16837.0,0.03589959]
[1673021481391,0.36033295,16838.0,16837.0,0.23589959]
[1673021485485,0.16033295,16838.0,16837.0,0.23589959]
[1673021485700,0.16143295,16838.0,16837.0,0.23589959]
[1673021486115,0.16143295,16838.0,16837.0,0.32434317]
[1673021487380,0.16143295,16838.0,16837.0,0.23589959]
[1673021493050,0.16143295,16838.0,16837.0,0.53659959]
[1673021494316,0.16143295,16838.0,16837.0,0.62504317]
[1673021497051,0.16143295,16838.0,16837.0,0.53659959]
[1673021497256,0.16143295,16838.0,16837.0,0.62504317]
[1673021497576,0.16143295,16838.0,16837.0,0.53659959]
[1673021499569,0.01283295,16838.0,16837.0,0.53659959]
[1673021499778,0.16143295,16838.0,16837.0,0.53659959]
[1673021500828,0.16123295,16838.0,16837.0,0.53659959]
[1673021503248,0.16143295,16838.0,16837.0,0.53659959]
[1673021503879,0.16143295,16838.0,16837.0,0.53652671]
[1673021505469,0.16053295,16838.0,16837.0,0.53652671]
[1673021505663,0.16053295,16838.0,16837.0,0.03582671]
[1673021505876,0.30913295,16838.0,16837.0,0.03582671]
[1673021507037,0.36143295,16838.0,16837.0,0.33652671]
[1673021511343,0.36123295,16838.0,16837.0,0.33652671]
[1673021516815,0.36123295,16838.0,16837.0,0.03582671]
[1673021517027,0.65733295,16838.0,16837.0,0.03582671]
[1673021519339,0.65733295,16838.0,16837.0,0.23582671]
[1673021520389,0.50873295,16838.0,16837.0,0.03582671]
[1673021520600,0.50873295,16838.0,16837.0,0.23582671]
[1673021523219,0.36123295,16838.0,16837.0,0.23582671]
[1673021523446,0.16123295,16838.0,16837.0,0.23582671]
[1673021526377,0.16123295,16838.0,16837.0,0.32427029]
[1673021526797,0.16123295,16838.0,16837.0,0.23582671]
[1673021527015,0.16123295,16838.0,16837.0,0.32427029]
[1673021530791,0.16103295,16838.0,16837.0,0.32427029]
[1673021532164,0.16103295,16838.0,16837.0,0.23582671]
[1673021532361,0.16103295,16838.0,16837.0,0.03582671]
[1673021532577,0.16103295,16838.0,16837.0,0.23582671]
[1673021533528,0.16033295,16838.0,16837.0,0.23582671]
[1673021533739,0.36033295,16838.0,16837.0,0.23582671]
[1673021536478,0.50893295,16838.0,16837.0,0.23582671]
[1673021536687,0.50893295,16838.0,16837.0,0.03582671]
[1673021538060,0.50893295,16838.0,16837.0,0.23582671]
[1673021539116,0.50893295,16838.0,16837.0,0.03582671]
[1673021542275,0.80963295,16838.0,16837.0,0.03582671]